bitfinex-derivatives/quotes_BNBF0:USTF0_20241230
["timestamp","ask_amount","ask_price","bid_price","bid_amount"]
[1735569778656,0.26529537,694.48,693.25,1.06832558]
[1735569778856,0.28799354,694.46,693.25,1.06832558]
[1735569779057,0.26529537,694.45,693.25,1.06832558]
[1735569780257,0.28800599,694.43,693.25,1.06832558]
[1735569780454,0.26529537,694.42,693.25,1.06832558]
[1735569780858,0.26529537,694.42,693.24,1.06832558]
[1735569781355,0.26532392,694.41,693.24,1.06832558]
[1735569781557,6.62962044,695.19,693.17,1.06832558]
[1735569781558,0.28802258,694.39,693.17,1.06832558]
[1735569781758,0.26533065,694.38,693.17,1.06832558]
[1735569782461,0.26533065,694.38,693.19,1.06832558]
[1735569782659,0.28803502,694.36,693.19,1.06832558]
[1735569782959,0.26533065,694.35,693.19,1.06832558]
[1735569783160,0.28804747,694.33,693.19,1.06832558]
[1735569783357,0.26533065,694.32,693.19,1.06832558]
[1735569783559,0.26533065,694.32,693.18,1.06832558]
[1735569784159,0.26535929,694.31,693.18,1.06832558]
[1735569784353,0.26535929,694.3,693.18,1.06832558]
[1735569784555,0.26535929,694.29,693.18,1.06832558]
[1735569784757,0.26538028,694.28,693.1,1.06832558]
[1735569784952,0.26538028,694.27,693.1,1.06832558]
[1735569785160,0.55345679,694.26,693.1,1.06832558]
[1735569785359,0.26538028,694.25,693.1,1.06832558]
[1735569785961,0.26538028,694.25,693.0,1.06832558]
[1735569786162,0.26538028,694.24,693.0,1.06832558]
[1735569786361,0.26538028,694.23,693.0,1.06832558]
[1735569786559,0.26544297,694.22,693.0,1.06832558]
[1735569786754,0.26544297,694.21,693.0,1.06832558]
[1735569787061,0.26544297,694.2,693.0,1.06832558]
[1735569787258,0.26544297,694.19,693.0,1.06832558]
[1735569787457,0.26544297,694.18,693.0,1.06832558]
[1735569787659,0.26544297,694.17,693.0,1.06832558]
[1735569787856,0.26544297,694.16,693.0,1.06832558]
[1735569788062,0.26544297,694.15,692.83,1.06832558]
[1735569788258,0.26544297,694.14,692.83,1.06832558]
[1735569788461,0.26544297,694.13,692.83,1.06832558]
[1735569788661,0.26544297,694.12,692.83,1.06832558]
[1735569788862,0.26544297,694.11,692.83,1.06832558]
[1735569789062,0.26544297,694.25,692.83,1.06832558]
[1735569789262,0.26544297,694.25,692.61,1.06832558]
[1735569789263,0.26544297,694.1,692.53,1.06832558]
[1735569789461,0.26544297,694.09,692.53,1.06832558]
[1735569789659,0.26544297,694.08,692.53,1.06832558]
[1735569789963,0.26544297,694.07,692.53,1.06832558]
[1735569790164,0.26544297,694.06,692.53,1.06832558]
[1735569790462,0.28807651,694.26,692.53,1.06832558]
[1735569790463,0.26544297,694.05,692.53,1.06832558]
[1735569790664,0.26544297,694.04,692.53,1.06832558]
[1735569790863,0.26544297,694.03,692.53,1.06832558]
[1735569791065,0.26544297,694.02,692.55,1.06832558]
[1735569791259,0.26544297,694.01,692.55,1.06832558]
[1735569791464,0.26544297,694.0,692.55,1.06832558]
[1735569791665,0.26544297,693.99,692.55,1.06832558]
[1735569791961,0.26544297,693.98,692.55,1.06832558]
[1735569792260,0.26544297,693.98,692.02,2.18116473]
[1735569792261,0.26547216,693.97,692.5,1.06832558]
[1735569792465,0.28807651,694.26,692.5,1.06832558]
[1735569792466,0.26547216,694.25,692.5,1.06832558]
[1735569792661,0.26547216,694.24,692.5,1.06832558]
[1735569792863,0.26547216,694.23,692.5,1.06832558]
[1735569793063,0.26547216,694.22,692.5,1.06832558]
[1735569793264,0.26547216,694.21,692.52,1.06832558]
[1735569793566,0.26547216,694.2,692.52,1.06832558]
[1735569793767,0.26547216,694.25,692.52,1.06832558]
[1735569793968,0.26547216,694.24,692.52,1.06832558]
[1735569794169,0.26547216,694.25,692.49,1.06832558]
[1735569794467,0.26547216,694.24,692.49,1.06832558]
[1735569794665,0.26547216,694.23,692.49,1.06832558]
[1735569794861,0.26547216,694.22,692.49,1.06832558]
[1735569795061,0.26547216,694.21,692.49,1.06832558]
[1735569795263,0.26547216,694.21,691.85,0.79073112]
[1735569795264,0.26547216,694.2,692.42,1.06832558]
[1735569795468,0.26547216,694.19,692.42,1.06832558]
[1735569795770,0.26547216,694.18,692.42,1.06832558]
[1735569795965,0.26547216,694.17,692.42,1.06832558]
[1735569796161,0.26547216,694.16,692.42,1.06832558]
[1735569796369,0.28812631,694.14,692.42,1.06832558]
[1735569796568,0.28812631,694.14,691.82,1.28199069]
[1735569796569,0.26547216,694.13,692.41,1.06832558]
[1735569796763,0.265468,694.12,692.41,1.06832558]
[1735569796966,0.265468,694.13,692.41,1.06832558]
[1735569797166,0.265468,694.12,692.41,1.06832558]
[1735569797469,0.265468,694.11,692.44,1.06832558]
[1735569797662,0.265468,694.1,692.44,1.06832558]
[1735569797868,0.265468,694.09,692.44,1.06832558]
[1735569798064,0.265468,694.08,692.44,1.06832558]
[1735569798267,0.265468,694.07,692.44,1.06832558]
[1735569798463,0.265468,694.06,692.46,1.06832558]
[1735569798668,0.265468,694.05,692.46,1.06832558]
[1735569798965,0.28817198,694.03,692.46,1.06832558]
[1735569799170,0.265468,694.02,692.46,1.06832558]
[1735569799366,0.26551684,694.01,692.41,1.06832558]
[1735569799569,0.26551684,694.0,692.41,1.06832558]
[1735569799865,0.26551684,693.99,692.41,1.06832558]
[1735569800064,0.26551684,693.98,692.41,1.06832558]
[1735569800270,0.26551684,693.97,692.41,1.06832558]
[1735569800470,0.26551684,693.96,692.41,1.06832558]
[1735569800667,0.26551684,693.95,692.41,1.06832558]
[1735569800865,0.28817198,694.03,692.19,1.06832558]
[1735569800866,0.26551684,693.94,692.19,1.06832558]
[1735569801066,0.26551684,693.93,692.19,1.06832558]
[1735569801271,0.28822181,693.91,692.19,1.06832558]
[1735569801466,0.26551684,693.9,692.19,1.06832558]
[1735569801870,0.26551684,693.9,692.34,1.06832558]
[1735569802372,0.28823427,693.88,692.34,1.06832558]
[1735569802573,0.26551684,693.87,692.34,1.06832558]
[1735569803490,0.26551684,693.87,692.28,1.06832558]
[1735569804474,0.26551684,693.87,692.45,1.06832558]
[1735569805572,0.26551684,693.87,692.46,1.06832558]
[1735569806476,0.26551684,693.87,692.53,1.06832558]
[1735569807075,0.5537137,693.86,692.53,1.06832558]
[1735569807277,0.26547112,693.85,692.53,1.06832558]
[1735569807478,0.26547112,693.85,692.65,1.06832558]
[1735569807677,0.55371728,693.84,692.65,1.06832558]
[1735569807872,0.26546639,693.83,692.65,1.06832558]
[1735569808274,0.2882592,693.82,692.65,1.06832558]
[1735569808475,0.26546639,693.81,692.68,1.06832558]
[1735569808872,0.2882592,693.82,692.68,1.06832558]
[1735569809592,0.2882592,693.82,692.24,0.78918488]
[1735569809593,0.2882592,693.82,692.65,1.06832558]
[1735569809781,0.26546373,693.81,692.65,1.06832558]
[1735569809982,0.28826751,693.8,692.65,1.06832558]
[1735569810880,0.28826751,693.8,692.69,1.06832558]
[1735569811780,0.26547471,693.79,692.69,1.06832558]
[1735569811982,0.26547471,693.79,692.7,1.06832558]
[1735569812181,0.26549461,693.78,692.7,1.06832558]
[1735569812382,0.26549461,693.77,692.7,1.06832558]
[1735569812583,0.26549461,693.76,692.7,1.06832558]
[1735569812979,0.28827997,693.77,692.72,1.06832558]
[1735569814181,0.28827997,693.77,692.1,2.18116473]
[1735569814182,0.28827997,693.77,692.73,1.06832558]
[1735569815082,0.28827997,693.77,692.79,1.06832558]
[1735569816077,0.28827997,693.77,692.12,1.28199069]
[1735569816078,0.28827997,693.77,692.72,1.06832558]
[1735569816882,0.28827997,693.77,692.71,1.06832558]
[1735569818184,0.28827997,693.77,692.81,1.06832558]
[1735569819779,0.28827997,693.77,692.89,1.06832558]
[1735569821086,0.28827997,693.77,693.23,1.06832558]
[1735569822286,0.28827997,693.77,693.26,1.06832558]
[1735569822887,0.28827997,693.77,693.13,1.06832558]
[1735569823791,0.28827997,693.77,693.05,1.06832558]
[1735569825181,0.28827997,693.77,693.0,1.06832558]
[1735569826391,0.28827997,693.77,692.92,1.06832558]
[1735569827486,0.28827997,693.77,692.68,1.06832558]
[1735569827487,0.28827997,693.77,692.95,1.06832558]
[1735569828493,0.28827997,693.77,692.86,1.06832558]
[1735569830487,0.28827997,693.77,692.89,1.06832558]
[1735569831694,0.28827997,693.77,692.94,1.06832558]
[1735569832489,0.28827997,693.77,693.0,1.06832558]
[1735569833697,0.28827997,693.77,692.45,2.18116473]
[1735569833698,0.28827997,693.77,692.95,1.06832558]
[1735569835898,0.28827997,693.77,692.86,1.06832558]
[1735569837397,0.28827997,693.77,692.99,1.06832558]
[1735569838197,0.28827997,693.77,693.04,1.06832558]
[1735569839399,0.28827997,693.77,693.05,1.06832558]
[1735569841599,0.28827997,693.77,693.11,1.06832558]
[1735569843403,0.28827997,693.77,693.09,1.06832558]
[1735569844405,0.28827997,693.77,693.06,1.06832558]
[1735569845499,0.28827997,693.77,693.02,1.06832558]
[1735569846404,0.28827997,693.77,693.11,1.06832558]
[1735569847500,0.28827997,693.77,693.09,1.06832558]
[1735569848897,0.28827997,693.77,693.08,1.06832558]
[1735569850299,0.28827997,693.77,692.83,1.06832558]
[1735569851404,0.28827997,693.77,692.95,1.06832558]
[1735569852204,0.28827997,693.77,692.25,2.18116473]
[1735569852205,0.28827997,693.77,693.09,1.06832558]
[1735569853505,0.28827997,693.77,692.8,1.06832558]
[1735569853805,0.26544943,693.76,692.8,1.06832558]
[1735569854105,0.28828828,693.75,692.8,1.06832558]
[1735569854305,0.26545795,693.74,692.8,1.06832558]
[1735569854500,0.26545795,693.74,692.99,1.06832558]
[1735569854704,0.28828828,693.75,692.99,1.06832558]
[1735569855001,0.26545395,693.74,692.99,1.06832558]
[1735569855198,0.265459,693.73,692.99,1.06832558]
[1735569855399,0.28828828,693.75,692.98,1.06832558]
[1735569856708,0.28828828,693.75,692.94,1.06832558]
[1735569857804,0.26547574,693.74,692.96,1.06832558]
[1735569858607,0.28828828,693.75,692.96,1.06832558]
[1735569859309,0.28828828,693.75,692.97,1.06832558]
[1735569860006,0.28828828,693.75,693.06,1.06832558]
[1735569861104,0.28828828,693.75,693.01,1.06832558]
[1735569863009,0.28828828,693.75,692.49,2.18116473]
[1735569863010,0.28828828,693.75,692.96,1.06832558]
[1735569864114,0.28828828,693.75,692.39,2.18116473]
[1735569864115,0.28828828,693.75,692.86,1.06832558]
[1735569865608,0.28828828,693.75,692.2,2.18116473]
[1735569865609,0.28828828,693.75,692.79,1.06832558]
[1735569866009,0.26551065,693.74,692.79,1.06832558]
[1735569866614,0.26551065,693.74,692.73,1.06832558]
[1735569866814,0.28829659,693.73,692.73,1.06832558]
[1735569867912,0.28829659,693.73,692.81,1.06832558]
[1735569869415,0.28829659,693.73,692.92,1.06832558]
[1735569870314,0.28829659,693.73,692.83,1.06832558]
[1735569871417,0.26549994,693.72,692.84,1.06832558]
[1735569872415,0.26549994,693.72,692.14,2.18116473]
[1735569872416,0.26549994,693.72,692.76,1.06832558]
[1735569873109,0.28830491,693.71,692.76,1.06832558]
[1735569873309,0.28830491,693.71,692.56,1.06832558]
[1735569873310,0.28830491,693.71,692.71,1.06832558]
[1735569873515,0.26551335,693.7,692.71,1.06832558]
[1735569873721,0.28830491,693.71,692.71,1.06832558]
[1735569874021,0.26551293,693.7,692.71,1.06832558]
[1735569874220,0.26551293,693.7,692.73,1.06832558]
[1735569874611,0.28831322,693.69,692.73,1.06832558]
[1735569875318,0.28831322,693.69,692.68,1.06832558]
[1735569876220,0.28831322,693.69,692.67,1.06832558]
[1735569877620,0.28831322,693.69,692.61,1.06832558]
[1735569878230,0.26555149,693.68,692.61,1.06832558]
[1735569878417,0.55385698,693.67,692.61,1.06832558]
[1735569878623,0.55386114,693.66,692.4,1.06832558]
[1735569878918,0.55386529,693.65,692.4,1.06832558]
[1735569879123,0.55386945,693.64,692.4,1.06832558]
[1735569879423,0.55387361,693.63,692.68,1.06832558]
[1735569879621,0.55387777,693.62,692.68,1.06832558]
[1735569879922,0.26553545,693.61,692.68,1.06832558]
[1735569880422,0.28835063,693.6,692.67,1.06832558]
[1735569880622,0.26553545,693.59,692.67,1.06832558]
[1735569881124,6.64345682,694.4,692.62,1.06832558]
[1735569881125,0.55392783,693.58,692.62,1.06832558]
[1735569881318,0.26556889,693.57,692.62,1.06832558]
[1735569882121,0.2655762,693.56,692.62,1.06832558]
[1735569882317,0.2655762,693.55,692.57,1.06832558]
[1735569882618,0.2655762,693.54,692.57,1.06832558]
[1735569882821,0.2655762,693.53,692.57,1.06832558]
[1735569883021,0.2655762,693.52,692.57,1.06832558]
[1735569883222,0.2655762,693.51,692.57,1.06832558]
[1735569883423,0.2655762,693.57,692.57,1.06832558]
[1735569883622,0.26556368,693.5,692.57,1.06832558]
[1735569883826,0.28835894,693.58,692.57,1.06832558]
[1735569884319,0.26556946,693.57,692.57,1.06832558]
[1735569884524,0.26556946,693.57,692.55,1.06832558]
[1735569885624,0.26556946,693.57,691.97,2.18116473]
[1735569885625,0.26556946,693.57,692.54,1.06832558]
[1735569886221,0.26558981,693.56,692.54,1.06832558]
[1735569886423,0.28835894,693.58,692.54,1.06832558]
[1735569887124,0.28835894,693.58,692.46,1.06832558]
[1735569887525,0.26559267,693.57,692.46,1.06832558]
[1735569887819,0.28835894,693.58,692.46,1.06832558]
[1735569888026,0.26559146,693.57,692.39,1.06832558]
[1735569888224,0.28835894,693.58,692.39,1.06832558]
[1735569888525,0.26559448,693.57,692.39,1.06832558]
[1735569888723,0.26559791,693.56,692.39,1.06832558]
[1735569888920,0.28835894,693.58,692.35,1.06832558]
[1735569889525,0.2655928,693.57,692.35,1.06832558]
[1735569889725,0.28836726,693.56,692.35,1.06832558]
[1735569890026,0.2655928,693.55,692.38,1.06832558]
[1735569890225,0.28837558,693.54,692.38,1.06832558]
[1735569890827,0.28837558,693.54,692.37,1.06832558]
[1735569891728,0.26554098,693.53,692.52,1.06832558]
[1735569891924,0.28837558,693.54,692.52,1.06832558]
[1735569892931,0.28837558,693.54,692.71,1.06832558]
[1735569894028,0.28837558,693.54,692.74,1.06832558]
[1735569895233,0.28837558,693.54,692.52,1.06832558]
[1735569895234,0.28837558,693.54,692.75,1.06832558]
[1735569896331,0.28837558,693.54,692.95,1.06832558]
[1735569897231,0.28837558,693.54,693.08,1.06832558]
[1735569898026,0.28837558,693.54,692.5,2.18116473]
[1735569898027,0.28837558,693.54,693.02,1.06832558]
[1735569898934,0.28837558,693.54,692.92,1.06832558]
[1735569900034,0.28837558,693.54,692.82,1.06832558]
[1735569900724,0.63844217,695.16,692.82,1.06832558]
[1735569900929,0.90384572,695.15,692.82,1.06832558]
[1735569901132,0.28775322,695.04,692.7,1.06832558]
[1735569901332,0.26541103,695.03,692.7,1.06832558]
[1735569901526,0.26541103,695.02,692.7,1.06832558]
[1735569901731,0.26541103,695.01,692.7,1.06832558]
[1735569901927,0.26541103,695.0,692.7,1.06832558]
[1735569902131,0.28775322,695.04,692.72,1.06832558]
[1735569902132,1.07106329,694.89,692.72,1.06832558]
[1735569902331,0.26541103,694.88,692.72,1.06832558]
[1735569902530,0.26541103,694.87,692.72,1.06832558]
[1735569902732,0.90398573,694.86,692.72,1.06832558]
[1735569903034,0.90398573,694.85,692.72,1.06832558]
[1735569903236,1.07106329,694.76,692.63,1.06832558]
[1735569903426,0.90418904,694.75,692.63,1.06832558]
[1735569903630,0.90418904,694.74,692.63,1.06832558]
[1735569903933,0.90418904,694.73,692.63,1.06832558]
[1735569904137,0.90418904,694.72,692.63,1.06832558]
[1735569904336,1.07106329,694.63,692.58,1.06832558]
[1735569904528,0.90418904,694.62,692.58,1.06832558]
[1735569904732,0.90418904,694.61,692.58,1.06832558]
[1735569904932,0.26547762,694.6,692.58,1.06832558]
[1735569905132,0.26547762,694.59,692.58,1.06832558]
[1735569905333,1.07106329,694.52,692.43,1.06832558]
[1735569905531,0.26547762,694.51,692.43,1.06832558]
[1735569905734,0.26556481,694.5,692.43,1.06832558]
[1735569906038,0.26556481,694.49,692.43,1.06832558]
[1735569906233,1.07106329,694.75,692.23,1.06832558]
[1735569906433,0.26557839,694.74,692.23,1.06832558]
[1735569906634,0.26557839,694.73,692.23,1.06832558]
[1735569906835,0.26557839,694.72,692.23,1.06832558]
[1735569907136,1.07106329,694.75,692.23,1.06832558]
[1735569907137,0.26557839,694.71,692.23,1.06832558]
[1735569907335,0.26557839,694.7,692.23,1.06832558]
[1735569907537,0.26557839,694.69,692.13,1.06832558]
[1735569907835,0.26557839,694.68,692.13,1.06832558]
[1735569908037,0.26557839,694.67,692.13,1.06832558]
[1735569908234,1.07106329,694.77,692.13,1.06832558]
[1735569908437,0.26559615,694.76,692.13,1.06832558]
[1735569908636,4.25384046,694.92,692.1,1.06832558]
[1735569908637,0.28792306,694.63,692.1,1.06832558]
[1735569908836,0.26559615,694.62,692.1,1.06832558]
[1735569909037,0.28797696,694.5,692.1,1.06832558]
[1735569909231,0.26559615,694.49,692.1,1.06832558]
[1735569909433,0.26559615,694.48,692.19,1.06832558]
[1735569909737,0.26559615,694.47,692.19,1.06832558]
[1735569909939,0.26559615,694.46,692.19,1.06832558]
[1735569910133,0.26559615,694.45,692.19,1.06832558]
[1735569910334,0.26559615,694.45,691.64,1.28199069]
[1735569910335,0.26559615,694.44,692.1,1.06832558]
[1735569910535,0.26559615,694.43,692.1,1.06832558]
[1735569910736,0.26559615,694.42,692.1,1.06832558]
[1735569910938,1.07106329,694.46,692.1,1.06832558]
[1735569911138,0.26564727,694.45,692.1,1.06832558]
[1735569911332,0.26564727,694.44,692.01,1.06832558]
[1735569911533,0.26564727,694.43,692.01,1.06832558]
[1735569911738,0.26564727,694.42,692.01,1.06832558]
[1735569911932,1.35904025,694.5,692.01,1.06832558]
[1735569911933,0.26564727,694.41,692.01,1.06832558]
[1735569912138,0.26564727,694.4,692.01,1.06832558]
[1735569912336,0.26564727,694.39,692.01,1.06832558]
[1735569912547,0.26564727,694.38,692.08,1.06832558]
[1735569912741,0.26564727,694.37,692.08,1.06832558]
[1735569913034,0.26564727,694.36,692.08,1.06832558]
[1735569913240,0.26564727,694.35,692.08,1.06832558]
[1735569913442,0.26564727,694.34,692.08,1.06832558]
[1735569913635,0.28797696,694.5,692.25,1.06832558]
[1735569913636,0.26564727,694.33,692.25,1.06832558]
[1735569913835,0.26564727,694.32,692.25,1.06832558]
[1735569914044,0.26550413,694.31,692.25,1.06832558]
[1735569914241,0.26550413,694.3,692.25,1.06832558]
[1735569914445,0.26550413,694.29,692.25,1.06832558]
[1735569914644,0.26550413,694.29,692.01,1.06832558]
[1735569914645,0.26550413,694.28,692.46,1.06832558]
[1735569914842,0.28797696,694.5,692.46,1.06832558]
[1735569914843,0.26550413,694.27,692.46,1.06832558]
[1735569915049,0.26550413,694.26,692.46,1.06832558]
[1735569915243,0.26550413,694.25,692.5,1.06832558]
[1735569915444,0.26550413,694.24,692.5,1.06832558]
[1735569915643,0.26550413,694.23,692.5,1.06832558]
[1735569915846,0.26550413,694.22,692.5,1.06832558]
[1735569916046,0.26554104,694.21,692.5,1.06832558]
[1735569916248,0.26554104,694.2,692.51,1.06832558]
[1735569916647,0.26554104,694.19,692.51,1.06832558]
[1735569916849,0.26554104,694.18,692.51,1.06832558]
[1735569917050,0.26554104,694.17,692.28,1.06832558]
[1735569917349,0.26554104,694.16,692.28,1.06832558]
[1735569917545,0.28797696,694.5,692.28,1.06832558]
[1735569917546,0.26554104,694.15,692.28,1.06832558]
[1735569917749,0.26554104,694.14,692.28,1.06832558]
[1735569917947,0.26554104,694.13,692.28,1.06832558]
[1735569918149,0.26554104,694.12,692.28,1.06832558]
[1735569918450,0.28797696,694.5,691.85,0.28908]
[1735569918451,0.26554104,694.11,692.15,1.06832558]
[1735569918651,0.26554104,694.1,692.15,1.06832558]
[1735569918850,0.26554104,694.09,692.15,1.06832558]
[1735569919152,0.26554104,694.08,692.15,1.06832558]
[1735569919353,0.26554104,694.07,692.15,1.06832558]
[1735569919650,0.26554104,694.06,692.09,1.06832558]
[1735569919852,0.26554104,694.05,692.09,1.06832558]
[1735569920045,0.26554104,694.04,692.09,1.06832558]
[1735569920246,0.26554104,694.03,692.09,1.06832558]
[1735569920449,0.26554104,694.02,692.26,1.06832558]
[1735569920649,0.26554104,694.01,692.26,1.06832558]
[1735569920850,0.26551694,694.0,692.26,1.06832558]
[1735569921151,0.26550165,693.99,692.26,1.06832558]
[1735569921449,0.26550165,693.99,691.89,1.06832558]
[1735569921450,0.26550165,693.98,692.34,1.06832558]
[1735569921650,0.26550165,694.49,692.34,1.06832558]
[1735569921845,0.26550165,693.97,692.34,1.06832558]
[1735569922050,0.26550165,693.96,692.34,1.06832558]
[1735569922352,0.26550165,693.95,692.34,1.06832558]
[1735569922552,0.28797696,694.5,692.68,1.06832558]
[1735569922553,0.26550165,693.94,692.68,1.06832558]
[1735569922851,0.26550165,693.93,692.68,1.06832558]
[1735569923045,0.26550165,693.92,692.68,1.06832558]
[1735569923250,0.26550165,693.91,692.68,1.06832558]
[1735569923552,0.26543241,693.9,692.62,1.06832558]
[1735569923752,0.26543067,693.89,692.62,1.06832558]
[1735569923952,0.26543067,693.88,692.62,1.06832558]
[1735569924152,0.28797696,694.5,692.62,1.06832558]
[1735569924353,0.26542322,694.49,692.62,1.06832558]
[1735569924554,0.26542322,694.48,692.62,1.06832558]
[1735569924852,0.26542322,694.47,692.65,1.06832558]
[1735569925153,0.26542322,694.46,692.65,1.06832558]
[1735569925353,0.26542322,694.45,692.65,1.06832558]
[1735569925654,0.26542322,694.44,692.65,1.06832558]
[1735569925852,0.26542322,694.43,692.64,1.06832558]
[1735569926052,0.26542322,694.42,692.64,1.06832558]
[1735569926353,0.28797696,694.5,692.64,1.06832558]
[1735569927354,0.28797696,694.5,692.17,1.28199069]
[1735569927355,0.26538243,694.49,692.72,1.06832558]
[1735569927756,0.28797696,694.5,692.72,1.06832558]
[1735569927949,0.26534857,694.48,692.72,1.06832558]
[1735569928347,0.26532885,694.47,692.72,1.06832558]
[1735569928556,0.26532885,694.46,692.84,1.06832558]
[1735569928753,0.26532885,694.45,692.84,1.06832558]
[1735569928954,0.26532885,694.44,692.84,1.06832558]
[1735569929257,0.26532885,694.43,692.84,1.06832558]
[1735569929550,0.28797696,694.5,692.84,1.06832558]
[1735569929755,0.28797696,694.5,692.91,1.06832558]
[1735569929756,0.26530922,694.49,692.91,1.06832558]
[1735569930655,0.26530922,694.49,692.9,1.06832558]
[1735569931455,0.26530922,694.49,692.33,2.18116473]
[1735569931456,0.26530922,694.49,692.81,1.06832558]
[1735569932251,0.26530922,694.49,692.84,1.06832558]
[1735569933258,0.26530922,694.49,692.86,1.06832558]
[1735569934159,0.26530922,694.49,692.93,1.06832558]
[1735569934458,0.28797696,694.5,692.93,1.06832558]
[1735569935058,0.28797696,694.5,692.7,1.06832558]
[1735569935059,0.28797696,694.5,692.97,1.06832558]
[1735569936261,0.28797696,694.5,693.0,1.06832558]
[1735569937059,0.26522386,694.49,693.0,1.06832558]
[1735569937260,0.26525456,694.48,692.91,1.06832558]
[1735569937561,0.26525456,694.47,692.91,1.06832558]
[1735569937859,0.26525456,694.46,684.45,0.52554055]
[1735569938056,0.26525456,694.45,690.81,5.65111737]
[1735569938254,0.26525456,694.49,690.82,5.65111737]
[1735569938458,0.26525456,694.48,690.83,2.98990083]
[1735569938658,0.26525456,694.49,690.83,5.65111737]
[1735569938858,0.26525456,694.47,690.84,5.65111737]
[1735569939072,0.26525456,694.46,690.85,2.98990083]
[1735569939260,0.26525456,694.45,690.85,5.65111737]
[1735569939460,0.26525456,694.49,692.72,1.0549336]
[1735569939662,0.28797696,694.5,692.72,1.0549336]
[1735569939863,0.26522998,694.48,692.72,1.0549336]
[1735569940063,0.26520166,694.47,692.72,1.0549336]
[1735569940262,0.26520166,694.46,692.72,1.0549336]
[1735569940463,0.26520166,694.45,692.72,1.0549336]
[1735569940664,0.26520166,694.44,692.85,1.0549336]
[1735569940861,0.26520166,694.43,692.85,1.0549336]
[1735569941065,0.26520166,694.42,692.85,1.0549336]
[1735569941362,0.26520166,694.41,692.85,1.0549336]
[1735569941562,0.26520166,694.4,692.85,1.0549336]
[1735569941757,0.28797696,694.5,693.03,1.0549336]
[1735569941958,0.26518297,694.49,693.03,1.0549336]
[1735569942360,0.26518596,694.48,693.03,1.0549336]
[1735569942563,0.26518596,694.47,693.03,1.0549336]
[1735569942766,0.26518596,694.46,693.02,1.0549336]
[1735569942965,0.26518545,694.45,693.02,1.0549336]
[1735569943158,0.26518545,694.44,693.02,1.0549336]
[1735569943367,0.26518545,694.43,693.02,1.0549336]
[1735569943657,0.26518545,694.49,693.02,1.0549336]
[1735569943859,0.26518545,694.48,693.02,1.0549336]
[1735569944065,0.26518545,694.47,693.07,1.0549336]
[1735569944266,0.28797696,694.5,693.07,1.0549336]
[1735569945267,0.28797696,694.5,693.08,1.0549336]
[1735569946765,0.28797696,694.5,692.88,1.0549336]
[1735569947763,0.28797696,694.5,693.18,1.0549336]
[1735569947964,0.63784106,696.56,693.18,1.0549336]
[1735569948168,0.28719126,696.4,693.18,1.0549336]
[1735569948367,0.90289288,696.39,693.18,1.0549336]
[1735569948566,0.90289288,696.38,693.18,1.0549336]
[1735569948869,0.90289288,696.37,693.18,1.0549336]
[1735569949166,0.90289288,696.36,693.27,1.0549336]
[1735569949373,0.90289288,696.35,693.27,1.0549336]
[1735569949666,0.90289288,696.34,693.27,1.0549336]
[1735569949869,0.28719126,696.4,693.27,1.0549336]
[1735569950071,0.90289831,696.39,693.27,1.0549336]
[1735569950268,0.90289831,696.38,693.31,1.0549336]
[1735569950566,0.63785795,696.37,693.31,1.0549336]
[1735569950765,0.902922,696.36,693.31,1.0549336]
[1735569950971,0.902922,696.35,693.31,1.0549336]
[1735569951163,0.902922,696.34,693.31,1.0549336]
[1735569951369,0.902922,696.33,693.32,1.0549336]
[1735569951568,0.902922,696.32,693.32,1.0549336]
[1735569951767,0.902922,696.31,693.32,1.0549336]
[1735569951970,0.902922,696.3,693.32,1.0549336]
[1735569952167,0.902922,696.29,693.32,1.0549336]
[1735569952365,0.902922,696.28,693.32,1.0549336]
[1735569952571,0.902823,696.27,693.35,1.0549336]
[1735569952774,0.902823,696.26,693.35,1.0549336]
[1735569953066,0.902823,696.25,693.35,1.0549336]
[1735569953267,0.902823,696.24,693.35,1.0549336]
[1735569953574,0.902823,696.23,693.37,1.0549336]
[1735569953769,0.902823,696.22,693.37,1.0549336]
[1735569953977,0.902823,696.21,693.37,1.0549336]
[1735569954176,0.902823,696.2,693.37,1.0549336]
[1735569954374,0.902823,696.19,693.37,1.0549336]
[1735569954573,0.902823,696.18,693.37,1.0549336]
[1735569954774,0.902823,696.17,693.44,1.0549336]
[1735569954974,0.28719126,696.4,693.44,1.0549336]
[1735569955273,0.90284459,696.39,693.44,1.0549336]
[1735569955471,0.90284459,696.38,693.44,1.0549336]
[1735569955668,0.90284459,696.37,693.44,1.0549336]
[1735569955869,0.90284459,696.36,693.56,1.0549336]
[1735569956071,0.90284459,696.35,693.56,1.0549336]
[1735569956268,0.90284459,696.34,693.56,1.0549336]
[1735569956471,0.90284459,696.33,693.56,1.0549336]
[1735569956670,0.90284459,696.32,693.52,1.0549336]
[1735569956872,0.90284459,696.31,693.52,1.0549336]
[1735569957073,0.90284459,696.3,693.52,1.0549336]
[1735569957273,0.28719126,696.4,693.52,1.0549336]
[1735569957274,0.90284459,696.29,693.52,1.0549336]
[1735569957574,0.90290066,696.28,693.52,1.0549336]
[1735569957776,0.90290066,696.27,693.62,1.0549336]
[1735569958078,0.90290066,696.26,693.62,1.0549336]
[1735569958270,0.90285163,696.26,693.62,1.0549336]
[1735569958575,0.90285163,696.25,693.62,1.0549336]
[1735569958875,0.90285163,696.24,693.62,1.0549336]